Cogmind - Beta 15 @@@ ROGUE MODE // 2025.06.10 @ 05:30:05 Player: CL-1C0 Result: Self-destructed Performance ------------- Evolutions (1) 500 Regions Visited (3) 600 Robots Destroyed (8) 40 Value Destroyed (213) 213 Prototype IDs (0) 0 Alien Tech Used (0) 0 Bonus (200) 200 TOTAL SCORE: 1553 Bonus ------- Pacifist 200 Cogmind --------- Core Integrity 340/400 Matter 221/300 Energy 99/100 System Corruption 0% Temperature Cool (0) Movement Core (50) Location -9/Mines Parts ------- > --- POWER (1) -------- (None) > --- PROPULSION (2) --- Light Treads Light Treads > --- UTILITY (4) ------ (None) > --- WEAPON (2) ------- Mini Grenade Launcher > --- INVENTORY (5) ---- Flight Unit Flight Unit Grenade Launcher Peak State ------------ > --- POWER ------------ (None) > --- PROPULSION ------- Light Treads Light Treads > --- UTILITY ---------- (None) > --- WEAPON ----------- Mini Grenade Launcher > --- INVENTORY -------- Grenade Launcher [Rating: 4] Favorites ----------- Power Ion Engine Engine Ion Engine Propulsion Light Treads Treads Light Treads Utility None Weapon Mini Grenade Launcher Launcher Mini Grenade Launcher Build | -11 -10 -9 -9 ------- Run | Yrd Mat Mat Min Slots Evolved 2 | . . 2 . Power . | . . . . Propulsion . | . . . . Utility 2 | . . 2 . Weapon . | . . . . Parts Attached 4 | 3 . 1 . Power 1 | 1 . . . Engine 1 | 1 . . . Core . | . . . . Reactor . | . . . . Propulsion 2 | 2 . . . Treads 2 | 2 . . . Leg . | . . . . Wheel . | . . . . Hover . | . . . . Flight . | . . . . Utility . | . . . . Device . | . . . . Storage . | . . . . Processor . | . . . . Hackware . | . . . . Protection . | . . . . Artifact . | . . . . Weapon 1 | . . 1 . Energy Gun . | . . . . Energy Cannon . | . . . . Ballistic Gun . | . . . . Ballistic Cannon . | . . . . Launcher 1 | . . 1 . Special Weapon . | . . . . Impact Weapon . | . . . . Slashing Weapon . | . . . . Piercing Weapon . | . . . . Special Melee Weapon . | . . . . Unidentified Prototypes . | . . . . Parts Lost . | . . . . Power . | . . . . Propulsion . | . . . . Utility . | . . . . Weapon . | . . . . Highest Loss Streak . | . . . . To Critical Strikes . | . . . . Average Backups 1 | 4 . 1 2 Power . | 1 . . . Propulsion . | 3 . . 1 Utility . | . . . . Weapon . | . . 1 1 Tool/Special . | . . . . Unused Backups 3 | . . . 3 Power . | . . . . Propulsion 2 | . . . 2 Utility . | . . . . Weapon 1 | . . . 1 Tool/Special . | . . . . Average Slot Usage (%) 29 | . 28 27 33 Treads 24 | . 28 22 22 Launcher 4 | . . 5 11 Peak Build Rating 4 | 3 2 4 4 Average Rating 2 | 1 2 3 4 On Entrance 3 | 6 2 2 4 Naked Turns . | . . . . Heaviest Build 1 | . . 1 1 Greatest Support 3 | 3 3 3 3 Greatest Overweight (x) . | . . . . Average Overweight (x) . | . . . . Largest Inventory Capacity 5 | 5 5 5 5 Average Capacity 5 | 5 5 5 5 Most Carried 4 | 4 1 1 3 Average Carried 1 | 1 . 1 2 Final Capacity 5 | 5 5 5 5 Final Carried 3 | . 1 1 3 Class Distribution -------------------- 100% | Mutant Dominant Class ---------------- Mutant | -10/Materials Mutant | -9/Materials Mutant | -9/Mines Resources | -11 -10 -9 -9 ----------- Run | Yrd Mat Mat Min Matter Collected 207 | 200 . . 7 Remotely . | . . . . Salvage Created 157 | . . 137 20 Parts 12 | . . 9 3 Haulers Intercepted . | . . . . Recyclers Shooed . | . . . . Parts Field Recycled . | . . . . Retrieved Matter . | . . . . Parts Self-Destructed . | . . . . Prevented . | . . . . Kills | -11 -10 -9 -9 ------- Run | Yrd Mat Mat Min Combat Hostiles Destroyed 8 | . . 5 3 AOE 8 | . . 5 3 Classes Destroyed 3 | . . 2 1 Swarmer 3 | . . . 3 Grunt 4 | . . 4 . Duelist 1 | . . 1 . Best Kill Streak 8 | . . 5 8 Combat Bots Only 8 | . . 5 8 Max Kills in Single Turn 3 | . . 2 3 Gunslinging . | . . . . Exploded 3 | . . 2 3 Melee . | . . . . Uniques/NPCs Destroyed . | . . . . Combat | -11 -10 -9 -9 -------- Run | Yrd Mat Mat Min Hostile Shots Fired 17 | . . 17 . Missed 9 | . . 9 . Hits 8 | . . 8 . Projectile 8 | . . 8 . Damage Taken 208 | . . 180 28 Core 60 | . . 60 . Absorbed by Shields . | . . . . Core Remaining (%) 100 | 100 100 . . Volleys Fired 6 | . . 5 1 Largest 1 | . . 1 1 Hottest 30 | . . 30 30 Shots Fired 6 | . . 5 1 Gun . | . . . . Cannon . | . . . . Launcher 6 | . . 5 1 Special . | . . . . Kinetic . | . . . . Thermal . | . . . . Explosive 6 | . . 5 1 Electromagnetic . | . . . . Robot Hit Streak 5 | . . 5 . Robot Miss Streak . | . . . . Penetration Max . | . . . . Secondary Targets . | . . . . Shots Hit Robots 5 | . . 5 . Core Hits 9 | . . 7 2 Critical Kills . | . . . . Critical Parts Destroyed . | . . . . Critical Strikes . | . . . . Melee Attacks . | . . . . Impact . | . . . . Slashing . | . . . . Piercing . | . . . . Sneak Attacks . | . . . . Combat Hostiles . | . . . . Follow-up Attacks . | . . . . Damage Inflicted 714 | . . 552 162 Guns . | . . . . Cannons . | . . . . Explosions 713 | . . 551 162 Melee . | . . . . Ramming 1 | . . 1 . Kinetic . | . . . . Thermal . | . . . . Explosive 713 | . . 551 162 Electromagnetic . | . . . . Impact . | . . . . Slashing . | . . . . Piercing . | . . . . Highest Corruption . | . . . . Average Corruption . | . . . . Corruption Purged . | . . . . Corruption Blocked . | . . . . Overload Shots . | . . . . Overflow Damage 46 | . . 19 27 Projectiles . | . . . . Explosions 46 | . . 19 27 Melee . | . . . . Knockbacks . | . . . . Impact . | . . . . Kinetic . | . . . . Secondary . | . . . . Self-Inflicted Damage 130 | . . 102 28 Shots 6 | . . 5 1 Rammed 3 | . . 3 . Targets Rammed 3 | . . 3 . Kicked . | . . . . Crushed . | . . . . Highest Temperature . | . . . . Average Temperature . | . . . . Received Heat Transfer 30 | . . 30 . Siege Activations . | . . . . Martial Activations . | . . . . Shielding Activations . | . . . . Robots Disrupted . | . . . . Combat Hostiles . | . . . . Robots Corrupted . | . . . . Combat Hostiles . | . . . . Parts Fried . | . . . . Impact Corruptions . | . . . . Robots Melted . | . . . . Combat Hostiles . | . . . . Parts Melted . | . . . . Heat Transferred . | . . . . Parts Sabotaged . | . . . . Parts Stolen . | . . . . Parts Stripped . | . . . . Power Chain Reactions . | . . . . Alert | -11 -10 -9 -9 ------- Run | Yrd Mat Mat Min Maximum Alert Level . | . . . . Low Security (%) 100 | 100 100 100 100 Level 1 . | . . . . Level 2 . | . . . . Level 3 . | . . . . Level 4 . | . . . . Level 5 . | . . . . High Security . | . . . . Max Security . | . . . . Peak Influence 127 | . . 127 125 Initial 45 | . . . 45 Average 48 | . . 55 121 Influence Increases 207 | . . 127 80 Destroy 0b10 Robot/C 160 | . . 100 60 Destroy Leader 20 | . . 10 10 Destroy Structure 27 | . . 17 10 Influence Decreases 92 | . . 10 82 Entered New Map 72 | . . . 72 Time Decay 20 | . . 10 10 Squads Dispatched 1 | . . 1 . Investigation . | . . . . Extermination . | . . . . Reinforcement 1 | . . 1 . Assault . | . . . . Garrison . | . . . . Intercept . | . . . . Searches Triggered . | . . . . Construction Impeded . | . . . . Haulers Reinforced . | . . . . Active Scanning Responses . | . . . . Cargo Convoy Interrupts . | . . . . Stealth | -11 -10 -9 -9 --------- Run | Yrd Mat Mat Min Distress Signals 1 | . . 1 . Communications Jammed . | . . . . Distress Signals . | . . . . Times Spotted 13 | . . 13 . Peak Tracking Total 7 | . . 7 . Tactical Retreats . | . . . . Traps | -11 -10 -9 -9 ------- Run | Yrd Mat Mat Min Traps Triggered . | . . . . Indirectly . | . . . . Trap Hack Attempts . | . . . . Triggered . | . . . . Disarmed . | . . . . Reprogrammed . | . . . . Reused . | . . . . Traps Extracted . | . . . . Installed . | . . . . Triggered . | . . . . Machines | -11 -10 -9 -9 ---------- Run | Yrd Mat Mat Min Machines Disabled . | . . . . Max in Single Turn . | . . . . Machines Repaired . | . . . . Machines Dismantled . | . . . . Machines Sabotaged . | . . . . Overloaded Fab Kills . | . . . . Hacking | -11 -10 -9 -9 --------- Run | Yrd Mat Mat Min Machines Accessed 1 | . 1 . . Terminals 1 | . 1 . . Fabricators . | . . . . Repair Stations . | . . . . Recycling Units . | . . . . Scanalyzers . | . . . . Garrison Access . | . . . . Total Hacks 3 | . 3 . . Successful . | . . . . Failed 3 | . 3 . . Catastrophic 1 | . 1 . . Database Lockouts . | . . . . Manual 3 | . 3 . . Terminals 3 | . 3 . . Fabricators . | . . . . Repair Stations . | . . . . Recycling Units . | . . . . Scanalyzers . | . . . . Garrison Access . | . . . . Terminal Hacks . | . . . . Fabricator Hacks . | . . . . Repair Station Hacks . | . . . . Recycling Unit Hacks . | . . . . Scanalyzer . | . . . . Garrison Access Hacks . | . . . . Unauthorized Hacks . | . . . . Terminals . | . . . . Fabricators . | . . . . Repair Stations . | . . . . Recycling Units . | . . . . Scanalyzers . | . . . . Garrison Access . | . . . . Data Cores Recovered . | . . . . Used . | . . . . Hacking Detections 1 | . 1 . . Full Trace Events 1 | . 1 . . Feedback Events . | . . . . Feedback Blocked . | . . . . Robot Schematics Acquired . | . . . . Robots Built . | . . . . Authchips . | . . . . Time . | . . . . Total Robot Build Rating . | . . . . Part Schematics Acquired . | . . . . Parts Built . | . . . . Authchips . | . . . . Time . | . . . . Total Part Build Rating . | . . . . Parts Repaired . | . . . . Time . | . . . . Parts Recycled . | . . . . Recycled Matter . | . . . . Retrieved Matter . | . . . . Retrieved Components . | . . . . Parts Scanalyzed . | . . . . Part Schematics Acquired . | . . . . Parts Damaged . | . . . . Bothacking | -11 -10 -9 -9 ------------ Run | Yrd Mat Mat Min Used RIF Installer . | . . . . Robots Hacked . | . . . . Non-combat . | . . . . Combat . | . . . . Robot Hacks Applied . | . . . . Relay Couplers Released . | . . . . Fabnet Peak Effective % . | . . . . Robots Rewired . | . . . . Allies Hacked . | . . . . Hacks Repelled . | . . . . Allies | -11 -10 -9 -9 -------- Run | Yrd Mat Mat Min Total Allies . | . . . . Largest Group . | . . . . Highest-Rated Group . | . . . . Highest-Rated Ally . | . . . . Total Orders . | . . . . Ally Attacks . | . . . . Total Damage . | . . . . Kills . | . . . . Allies Corrupted . | . . . . Allies Melted . | . . . . Intel | -11 -10 -9 -9 ------- Run | Yrd Mat Mat Min Active Infowar (turns) . | . . . . Robot Analysis Total . | . . . . Derelict Logs Recovered 1 | . . . 1 Drone Launches . | . . . . Drone Recoveries . | . . . . Exploration | -11 -10 -9 -9 ------------- Run | Yrd Mat Mat Min Turns Passed 130 | 6 47 46 31 Spaces Moved 205 | 2 91 59 53 Core 205 | 2 91 59 53 Treads . | . . . . Legs . | . . . . Wheels . | . . . . Hover . | . . . . Flight . | . . . . Fastest Speed 50 | 50 50 50 50 Average Speed 50 | 50 50 50 50 Slowest Speed 50 | 50 50 50 50 Overloaded Moves . | . . . . Propulsion Burnouts . | . . . . Robots Hopped . | . . . . Potential Cave-ins . | . . . . Cave-ins Triggered . | . . . . Exploration Rate (%) 15 | 2 24 16 18 Regions Visited 3 Branch Regions 1 Pre-discovered Areas 1 | . . . 1 Known Exits Taken . | . . . . Unknown Exits Taken 3 | 1 1 1 . Scrap Searched . | . . . . Spaces Dug 10 | . . . 10 Terrain Destroyed 30 | . . 20 10 Melee . | . . . . Projectile . | . . . . AOE 30 | . . 20 10 Terrain Rammed . | . . . . Walls Destroyed . | . . . . Machines Disabled . | . . . . Actions | -11 -10 -9 -9 --------- Run | Yrd Mat Mat Min Total 221 | 7 91 67 56 Wait . | . . . . Move 202 | 1 90 58 53 Hop . | . . . . Pick Up 3 | . 1 . 2 Fast Attach 1 | . . 1 . Attach 3 | 3 . . . Detach . | . . . . Swap . | . . . . Drop 3 | 3 . . . Fire 6 | . . 5 1 Melee . | . . . . Ram . | . . . . Kick . | . . . . Crush 3 | . . 3 . Escape Stasis . | . . . . Rewire . | . . . . Trap . | . . . . Miscellaneous . | . . . . Route ------- -11/Scrapyard -10/Materials (discovered 2 exits: [*Mat] / [*Min]) -9/Materials -9/Mines History --------- Turn | Location | Event 1 | -11/Scrapyard | Released all parts (6) 6 | -11/Scrapyard | Discovered new exit (range 1) 7 | -11/Scrapyard | Entered Materials 46 | -10/Materials | Discovered new exit (range 8) 47 | -10/Materials | Discovered new exit (range 14) 54 | -10/Materials | Entered another Materials area 54 | -9/Materials | Evolved 2 slots: Utility x2 93 | -9/Materials | Discovered new exit (range 15) 100 | -9/Materials | Entered Mines 109 | -9/Mines | Learned location of Storage (-8) 121 | -9/Mines | Destroyed 8 combat bots 131 | -9/Mines | Self-destructed Last Messages --------------- 00093_ EXIT=FOUND 00095_ U-05 Engineer lays Concrete. 00096_ R-06 Scavenger collects Aluminum Leg. 00097_ U-05 Engineer lays Concrete. 00097_ U-05 Engineer builds a Wall. LOCATION=UNKNOWN GOAL=ESCAPE 00100_ S-10 Pest destroyed. 00100_ Destroyed Flight Unit. 00100_ S-10 Pest destroyed. 00101_ The unstable cave ceiling collapses. 00101_ T-07 Excavator is excavating. 00104_ Acquired Flight Unit. 00104_ T-07 Excavator is excavating. 00105_ Acquired 7 matter. 00106_ Acquired Flight Unit. 00108_ T-07 Excavator is excavating. 00109_ Acquired derelict log, extracted data. World map updated: -8/Storage. 00118_ K-01 Serf collects debris. Map ----- +----------------------------------------------------+ | | | | | | | | | | | | | | | ?????????????????????????????????? | | ?????????????????????????????????? | | ???????????????????????##########? | | ?????????????????????# #? | | ?????????????????????# #? | | ?????????????????????# """ """ #? | | ??????####??????????## """ """ #? | | ?????## ######?????#T """ """ #? | | ?????# # #??????# #? | | ?????# #??????# #? | | ?????## [% #??????###### ###?? | | ?????# % #???????????# #???? | | ?????## # #?????????### #???? | | ??????## ## #?####????# #???? | | ???????# ## ### ##???# k #???? | | ???????## #? ###?# k###???? | | ????????##### #?# ### #?????? | | ????????????# #?# ## #?????? | | ?????### ### ### ##@ #?????? | | ?????# #?# #?????? | | ????# #?# #?????? | | ???# ###### #?# ##????? | | ???# ?????## ### ##???? | | ???# ???????## ## ##??? | | ??# ?????????## #??? | | ?# ???????????## #??? | | ? ###?????????????### ##??? | | ? ???????????????????## ###???? | | ???????????????????????#####?????? | | ?????????????????????????????????? | | ?????????????????????????????????? | | ?????????????????????????????????? | | ?????????????????????????????????? | | ?????????????????????????????????? | | ?????????????????????????????????? | | ?????????????????????????????????? | | ?????????????????????????????????? | | ?????????????????????????????????? | | ?????????????????????????????????? | | ?????????????????????????????????? | | ?????????????????????????????????? | | ?????????????????????????????????? | | ?????????????????????????????????? | +----------------------------------------------------+ Best States ------------- Heat Dissipation 28 Energy Generation 5 Energy Capacity 100 Matter Stores 274 Matter Capacity 300 Sight Range 16 Terrain Scan Density 10 Evasion (%) 50 Recoil Reduction 2 Item Schematics ----------------- None Robot Schematics ------------------ None Fabricated ------------ Nothing Repaired ---------- Nothing Alien Tech Used ----------------- None Achievements -------------- None Challenges ------------ None Game ------ Seed DirtyVortexThrower Manual? 0 Play Time 00:02:06 Cumulative 531.3 hours Start 2025.06.10 @ 05:28:18 End 2025.06.10 @ 05:30:05 Sessions 1 Manual Loads 0 Difficulty Rogue Special Mode None Game No. 614 Rogue 614 Adventurer 0 Explorer 0 Win Type - Total 18 Types 12/0/5/1/0/0/0/0/0/0 Lore% 83 Gallery% 82 Achievement% 82 Wizard Run 0 Options --------- Layout 0 ASCII 0 Keyboard 0 Movement Numpad Keybinds 0 Fullscreen 1 Font 18/SmallcapsGlow Map View 76x50 Zoom Use 0% Tactical HUD 1 Map Filters NONE Filters NONE Steam 1 RUN: 4d7854e7-34ef-4a61-b1e9-0596bf286956